fUSD/lending_fUSD_20250227
["ID","MTS","AMOUNT","RATE_DAILY","PERIOD"]
[354774850,1740682251646,-500.0,0.00042029,2]
[354774851,1740682251655,-500.0,0.00042029,2]
[354774852,1740682251664,-744.0,0.00042029,2]
[354774853,1740682251673,-500.0,0.00042029,2]
[354774854,1740682251682,-500.0,0.00042029,2]
[354774855,1740682251691,-500.0,0.00042029,2]
[354774856,1740682251700,-500.0,0.00042029,2]
[354774857,1740682251710,-500.0,0.00042029,2]
[354774858,1740682251719,-500.0,0.00042029,2]
[354774859,1740682251729,-500.0,0.00042029,2]
[354774860,1740682251738,-500.0,0.00042029,2]
[354774861,1740682251748,-500.0,0.00042029,2]
[354774862,1740682251757,-500.0,0.00042029,2]
[354774863,1740682251767,-500.0,0.00042029,2]
[354774864,1740682251776,-500.0,0.00042029,2]
[354774865,1740682251785,-500.0,0.00042029,2]
[354774866,1740682251794,-500.0,0.00042029,2]
[354774867,1740682251804,-500.0,0.00042029,2]
[354774868,1740682251814,-500.0,0.00042029,2]
[354774869,1740682251823,-500.0,0.00042029,2]
[354774870,1740682251832,-500.0,0.00042029,2]
[354774871,1740682251841,-500.0,0.00042029,2]
[354774872,1740682251851,-500.0,0.00042029,2]
[354774873,1740682251859,-500.0,0.00042029,2]
[354774874,1740682251869,-500.0,0.00042029,2]
[354774875,1740682251878,-500.0,0.00042029,2]
[354774876,1740682251887,-500.0,0.00042029,2]
[354774877,1740682251896,-500.0,0.00042029,2]
[354774878,1740682251905,-500.0,0.00042029,2]
[354774879,1740682251914,-500.0,0.00042029,2]
[354774880,1740682251924,-500.0,0.00042029,2]
[354774881,1740682251933,-500.0,0.00042029,2]
[354774882,1740682251942,-500.0,0.00042029,2]
[354774883,1740682251951,-500.0,0.00042029,2]
[354774884,1740682251960,-500.0,0.00042029,2]
[354774885,1740682251969,-500.0,0.00042029,2]
[354774886,1740682251978,-500.0,0.00042029,2]
[354774887,1740682251987,-500.0,0.00042029,2]
[354774888,1740682251995,-500.0,0.00042029,2]
[354774889,1740682252004,-500.0,0.00042029,2]
[354774890,1740682252015,-500.0,0.00042029,2]
[354774891,1740682252026,-500.0,0.00042029,2]
[354774892,1740682252035,-500.0,0.00042029,2]
[354774893,1740682252044,-500.0,0.00042029,2]
[354774894,1740682252053,-500.0,0.00042029,2]
[354774895,1740682252064,-500.0,0.00042029,2]
[354774896,1740682252073,-500.0,0.00042029,2]
[354774897,1740682252082,-500.0,0.00042029,2]
[354774898,1740682252091,-500.0,0.00042029,2]
[354774899,1740682252100,-500.0,0.00042029,2]
[354774900,1740682252109,-500.0,0.00042029,2]
[354774901,1740682252118,-500.0,0.00042029,2]
[354774902,1740682252127,-500.0,0.00042029,2]
[354774903,1740682252137,-500.0,0.00042029,2]
[354774904,1740682252145,-500.0,0.00042029,2]
[354774905,1740682252155,-500.0,0.00042029,2]
[354774906,1740682252164,-500.0,0.00042029,2]
[354774907,1740682252173,-500.0,0.00042029,2]
[354774908,1740682252182,-500.0,0.00042029,2]
[354774909,1740682252191,-500.0,0.00042029,2]
[354774910,1740682252200,-500.0,0.00042029,2]
[354774911,1740682252209,-500.0,0.00042029,2]
[354774912,1740682252219,-965.0,0.00042029,2]
[354774913,1740682252227,-500.0,0.00042029,2]
[354774914,1740682252236,-500.0,0.00042029,2]
[354774915,1740682252246,-500.0,0.00042029,2]
[354774916,1740682252255,-500.0,0.00042029,2]
[354774917,1740682252266,-500.0,0.00042029,2]
[354774918,1740682252276,-500.0,0.00042029,2]
[354774919,1740682252287,-500.0,0.00042029,2]
[354774920,1740682252297,-500.0,0.00042029,2]
[354774921,1740682252307,-500.0,0.00042029,2]
[354774922,1740682252317,-500.0,0.00042029,2]
[354774923,1740682252327,-500.0,0.00042029,2]
[354774924,1740682252336,-500.0,0.00042029,2]
[354774925,1740682252345,-500.0,0.00042029,2]
[354774926,1740682252354,-500.0,0.00042029,2]
[354774927,1740682252363,-500.0,0.00042029,2]
[354774928,1740682252372,-500.0,0.00042029,2]
[354774929,1740682252381,-500.0,0.00042029,2]
[354774930,1740682252391,-500.0,0.00042029,2]
[354774931,1740682252401,-500.0,0.00042029,2]
[354774932,1740682252411,-500.0,0.00042029,2]
[354774933,1740682252420,-500.0,0.00042029,2]
[354774934,1740682252429,-500.0,0.00042029,2]
[354774935,1740682252439,-500.0,0.00042029,2]
[354774936,1740682252449,-500.0,0.00042029,2]
[354774937,1740682252459,-500.0,0.00042029,2]
[354774938,1740682252470,-500.0,0.00042029,2]
[354774939,1740682252479,-500.0,0.00042029,2]
[354774940,1740682252489,-500.0,0.00042029,2]
[354774941,1740682252499,-500.0,0.00042029,2]
[354774942,1740682252509,-500.0,0.00042029,2]
[354774943,1740682252519,-500.0,0.00042029,2]
[354774944,1740682252530,-500.0,0.00042029,2]
[354774945,1740682252540,-500.0,0.00042029,2]
[354774946,1740682252551,-500.0,0.00042029,2]
[354774947,1740682252564,-500.0,0.00042029,2]
[354774948,1740682252574,-500.0,0.00042029,2]
[354774949,1740682252584,-500.0,0.00042029,2]
[354774950,1740682252594,-500.0,0.00042029,2]
[354774951,1740682252603,-662.0,0.00042029,2]
[354774952,1740682252612,-203.91694076,0.0004215,9]
[354774953,1740682252622,-153.47169,0.00042509,14]
[354774954,1740682252631,-151.0,0.00042509,14]
[354774955,1740682252641,-151.0,0.00042509,14]
[354774956,1740682252650,-800.0,0.00043,2]
[354774957,1740682252659,-735.62,0.00043001,2]
[354774958,1740682252668,-274.94,0.00043151,2]
[354774959,1740682252678,-502.02130249,0.00043882,10]
[354774960,1740682252686,-203.91694076,0.000439,9]
[354774961,1740682252696,-2000.0,0.00044,2]
[354774962,1740682252706,-1000.0,0.00044,2]
[354774963,1740682252715,-9999.0,0.00044,120]
[354774964,1740682252724,-206.0,0.00044239,2]
[354774965,1740682252733,-500000.0,0.000444,30]
[354774966,1740682252743,-151.0,0.000444,14]
[354774967,1740682252754,-566.61896668,0.0004462,2]
[354774968,1740682252763,-203.0,0.0004488,30]
[354774969,1740682252772,-4248.23191707,0.00044956,15]
[354774970,1740682252781,-150.0,0.00044973,10]
[354774971,1740682252791,-171.45,0.00044999,15]
[354774972,1740682252799,-160.0690184,0.00045,120]
[354774973,1740682252809,-142975.87050915,0.00045,90]
[354774974,1740682252818,-6285.27548605,0.00045,45]
[354774975,1740682252827,-483057.4606291,0.00045,90]
[354774976,1740682253077,-144352.020519,0.00045,90]
[354774977,1740682255289,-3917.67693289,0.00045,90]
[354774978,1740682255377,-558.34504162,0.00045,90]
[354774979,1740682717837,8830.39260173,0.00023,30]
[354774980,1740682811759,-9582.9253,0.000149,2]
[354774981,1740682811783,-6630.17,0.000149,2]
[354774982,1740682811806,-1569.8022,0.000149,2]
[354774983,1740682811830,-1865.1499,0.000149,2]
[354774984,1740682811854,-24685.89957497,0.000149,2]
[354774985,1740682811877,-151.0,0.00015,2]
[354774986,1740682811904,-151.0,0.00015,2]
[354774987,1740682811927,-151.0,0.00015,2]
[354774988,1740682811950,-151.0,0.00015,2]
[354775005,1740683432153,-797.0,0.000173,2]
[354775006,1740683432163,-129.43419227,0.00021818,2]
[354775007,1740683432259,-130.53921564,0.00021818,2]
[354775008,1740683432269,-179.88,0.00021918,2]
[354775009,1740683432279,-537.08078436,0.00023339,3]
[354775010,1740683432291,-251.15621564,0.00023339,3]
[354775011,1740683432300,-1953.20770622,0.00024756,2]
[354775012,1740683432309,-155.92,0.00026849,2]
[354775013,1740683432319,-736.0,0.00028,2]
[354775014,1740683432328,-748.0,0.00028,2]
[354775015,1740683432338,-259.97340789,0.00031363,2]
[354775016,1740683432347,-155.92,0.00035321,2]
[354775017,1740683432356,-252.49,0.00036252,2]
[354775018,1740683432366,-250.0,0.00038992,2]
[354775019,1740683432375,-200.0,0.00039398,2]
[354775020,1740683432384,-593.74518404,0.0003979,5]
[354775021,1740683432399,-432.34322347,0.0003979,5]
[354775022,1740683432410,-427.82738688,0.0003979,5]
[354775051,1740683440447,-246.08420561,0.0003979,5]
[354775052,1740683440456,-259.97340789,0.00040908,2]
[354775053,1740683440468,-253.59,0.00041008,2]
[354775054,1740683440477,-207.69132527,0.000414,2]
[354775055,1740683440487,-450.0,0.00042418,5]
[354775056,1740683440496,-1500.0,0.00042419,120]
[354775057,1740683440506,-253.59,0.00043272,2]
[354775058,1740683440515,-165.57,0.00043709,120]
[354775059,1740683440524,-155.92,0.00043793,2]
[354775060,1740683440534,-203.91694076,0.000439,9]
[354775061,1740683440545,-23900.0,0.00043924,2]
[354775062,1740683440555,-150.05014539,0.00044,2]
[354775063,1740683440564,-199.38,0.00044047,2]
[354775064,1740683440574,-150.0,0.00044047,7]
[354775065,1740683440583,-159.894749,0.00044064,90]
[354775067,1740683440592,-159.0,0.000446,50]
[354775068,1740683440601,-150.00000955,0.0004462,51]
[354775069,1740683440611,-500.0,0.000449,2]
[354775070,1740683440620,-85836.9273,0.000449,2]
[354775071,1740683440629,-9970.0938,0.000449,2]
[354775072,1740683440638,-315.5641,0.000449,2]
[354775073,1740683440647,-1025.8486042,0.000449,17]
[354775074,1740683440656,-157.23987957,0.000449,15]
[354775075,1740683440665,-726.6292,0.000449,2]
[354775076,1740683440674,-150.0,0.00044959,30]
[354775077,1740683440684,-439.11,0.00044959,30]
[354775078,1740683440693,-150.0,0.00044959,30]
[354775079,1740683440702,-150.0,0.00044959,30]
[354775080,1740683440711,-46092.9905002,0.00045,90]
[354775081,1740683440724,-85537.04610085,0.00045,90]
[354775082,1740683440737,-12440.64970083,0.00045,90]
[354775094,1740683443270,-150.0,0.00042419,120]
[354775095,1740683443280,-120.91852422,0.00045,90]
[354775098,1740683446378,-150.0,0.00044064,90]
[354775099,1740683446387,-150.0,0.000448,2]
[354775100,1740683446397,-7326.71443011,0.00045,90]
[354775101,1740683446486,-1394.34987377,0.00045,90]
[354775102,1740683446547,-540.16337945,0.00045,90]
[354775103,1740683446598,-5295.36095721,0.00045,90]
[354775108,1740684320061,1791.05930742,9e-05,2]
[354775109,1740684355622,3270.99371761,6.94e-05,2]
[354775110,1740684355656,10916.94642558,6.94e-05,2]
[354775148,1740684632347,-399.1076234,0.0001999,2]
[354775155,1740684632457,-863.47296699,0.0001999,2]
[354775159,1740684638382,-257.70724861,0.0001999,2]
[354775345,1740684640382,-2135.35120902,0.0001999,2]
[354775347,1740684640394,-4316.49462303,0.0001999,2]
[354775364,1740684640647,-863.59961837,0.0001999,2]
[354775366,1740684640661,-2117.03,0.0001999,2]
[354776104,1740684646739,-1162.13208007,0.0001999,2]
[354776106,1740684646750,-291.88430354,0.0001999,2]
[354776108,1740684646762,-289.14100005,0.0001999,2]
[354776110,1740684646772,-7595.36113,0.0001999,2]
[354776112,1740684646787,-1005.6835138,0.0001999,2]
[354776968,1740685609831,-150.3801929,0.00015,20]
[354776969,1740685653258,-895.17566033,0.0003,120]
[354776970,1740685774984,-717.0,0.000174,2]
[354776971,1740685775009,-49283.0,0.000195,2]
[354776974,1740685776789,-50000.0,0.000195,2]
[354776975,1740685778262,-50000.0,0.000195,2]
[354776976,1740685780000,-50000.0,0.000195,2]
[354776977,1740685781219,-50000.0,0.000195,2]
[354776978,1740685788581,-15000.0,0.000195,2]
[354776993,1740685831648,-250.0,0.000184,2]
[354776994,1740685831659,-300.0,0.00019499,2]
[354776995,1740685831671,-5173.01479134,0.000195,2]
[354776996,1740685831700,-371.37308165,0.000195,2]
[354776997,1740685831755,-692.5626787,0.000195,2]
[354776998,1740685831768,-1450.70285295,0.000195,2]
[354776999,1740685831780,-305.67599375,0.000195,2]
[354777000,1740685831807,-3490.07497671,0.000195,2]
[354777001,1740685831819,-260.0045197,0.000195,2]
[354777002,1740685831876,-646.9000003,0.000195,2]
[354777003,1740685831887,-1544.46877001,0.000195,2]
[354777004,1740685831915,-509.8191294,0.000195,2]
[354777005,1740685831969,-684.04122533,0.000195,2]
[354777006,1740685832021,-4726.66290055,0.000195,2]
[354777007,1740685832032,-324.2343219,0.000195,2]
[354777413,1740685837514,-255.0,0.000184,2]
[354777414,1740685837567,-572.69132527,0.000184,2]
[354777415,1740685837577,-7866.671596,0.000195,2]
[354777416,1740685837586,-630.589,0.000196,2]
[354777417,1740685837595,-369.90441975,0.00019609,2]
[354777418,1740685837605,-4843.536,0.000199,2]
[354777419,1740685837614,-216.88349919,0.000199,2]
[354777420,1740685837623,-317.85599568,0.000199,2]
[354777421,1740685837632,-203.91694076,0.000199,2]
[354777422,1740685837642,-500.0,0.00019973,2]
[354777423,1740685837652,-150.0,0.00019994,2]
[354777424,1740685837661,-150.0,0.00019999,2]
[354777425,1740685837671,-500.0,0.00019999,2]
[354777426,1740685837680,-509.70307824,0.00019999,2]
[354777427,1740685837690,-500.0,0.00019999,2]
[354777428,1740685837699,-500.0,0.00019999,2]
[354777429,1740685837709,-1070.01685445,0.0002,15]
[354777430,1740685837780,-84023.42357782,0.0002,15]
[354777431,1740685837791,-417.76177221,0.0002,15]
[354777432,1740685837835,-1014.25079965,0.0002,15]
[354777589,1740685839664,-312.431236,0.0002,15]
[354777592,1740685839676,-1445.81978199,0.0002,15]
[354777623,1740685839960,-2800.03305333,0.0002,15]
[354777659,1740685840283,-7265.47324332,0.0002,15]
[354777661,1740685840297,-12440.64970083,0.0002,15]
[354777663,1740685840309,-446.51561523,0.0002,15]
[354777668,1740685840350,-392.21850359,0.0002,15]
[354777746,1740685842643,-150.00001839,0.00019999,2]
[354777749,1740685842652,-392.7543674,0.0002,15]
[354777753,1740685842697,-6872.04796912,0.0002,15]
[354777818,1740685844252,-250.2,0.0002,15]
[354777820,1740685844267,-252172.73694521,0.0002,15]
[354777991,1740685846024,-839.7,0.0002,15]
[354778042,1740685846548,-1344.0,0.0002,15]
[354778048,1740685846601,-625.90000012,0.0002,15]
[354778050,1740685846613,-1097.92499308,0.0002,15]
[354778052,1740685846624,-252.1137074,0.0002,15]
[354778055,1740685846635,-3793.19395862,0.0002,15]
[354778057,1740685846646,-210000.0,0.0002,15]
[354778417,1740686048551,-165.57,0.00024712,30]
[354778418,1740686086440,-1950.28,0.0002,15]
[354778419,1740686452788,-350.0,0.0002,15]
[354778467,1740687014684,240.0,0.000165,90]
[354778487,1740687031799,-919.0,0.000174,2]
[354778489,1740687031809,-682.807,0.000196,2]
[354778491,1740687031818,-601.40252301,0.000197,2]
[354778493,1740687031827,-315.5641,0.000199,2]
[354778495,1740687031836,-157.14607024,0.000199,2]
[354778497,1740687031845,-1000.0,0.00019999,2]
[354778499,1740687031854,-185.86745,0.00019999,2]
[354778501,1740687031863,-300.0,0.00019999,2]
[354778503,1740687031871,-4217.31285675,0.0002,15]
[354778507,1740687031912,-4676.35980331,0.0002,15]
[354778509,1740687031923,-9229.30415257,0.0002,15]
[354778515,1740687031973,-3673.36584127,0.0002,15]
[354778526,1740687032066,-474.141538,0.0002,15]
[354778528,1740687032077,-297.52039603,0.0002,15]
[354778530,1740687032173,-390.66614492,0.0002,15]
[354778543,1740687037802,-437.26220226,0.0002,15]
[354778544,1740687037856,-4348.06878917,0.0002,15]
[354778545,1740687037911,-428.73511875,0.0002,15]
[354778546,1740687037999,-18662.89206256,0.0002,15]
[354778549,1740687039862,-8171.47584514,0.0002,15]
[354778550,1740687039966,-1009728.52602813,0.0002,15]
[354778551,1740687039976,-317.85599567,0.000205,2]
[354778552,1740687039986,-164.74943923,0.000206,2]
[354778553,1740687039996,-1903.34217335,0.000207,2]
[354778554,1740687040006,-204.15248646,0.000209,2]
[354778555,1740687040015,-26518.52208001,0.00020999,2]
[354778556,1740687040030,-250.0,0.00021,2]
[354778557,1740687040039,-150.0,0.00021777,2]
[354778558,1740687040049,-188.39,0.00021918,2]
[354778559,1740687040059,-150.0,0.00021989,2]
[354778560,1740687040068,-9774.53869139,0.00022067,2]
[354778561,1740687040077,-300.0,0.00023,2]
[354778562,1740687040087,-1903.3421733,0.00024167,2]
[354778563,1740687040096,-265.26230214,0.0002429,7]
[354778564,1740687040106,-185.86745,0.00024999,2]
[354778565,1740687040115,-560.92880039,0.00025,2]
[354778566,1740687040126,-350.0,0.00025,2]
[354778567,1740687040135,-204.15248646,0.00026471,4]
[354778568,1740687040145,-172.93,0.00026849,2]
[354778569,1740687040155,-160.87,0.00026849,2]
[354778570,1740687040164,-1903.3421733,0.00027633,2]
[354778571,1740687040173,-750.0,0.000281,2]
[354778572,1740687040182,-185.86746,0.00029999,2]
[354778573,1740687040191,-458.82536473,0.00030363,2]
[354778574,1740687040200,-7685.2428384,0.00030384,2]
[354778575,1740687040209,-19177.1602051,0.00030405,2]
[354778576,1740687040218,-429.8,0.00030421,2]
[354778577,1740687040227,-1903.3421733,0.000311,2]
[354778578,1740687040237,-307.08,0.00031415,2]
[354778579,1740687040247,-849.12,0.00031681,2]
[354778580,1740687040257,-150.0,0.00031866,2]
[354778581,1740687040266,-150.0,0.00032012,7]
[354778582,1740687040276,-204.15248646,0.00032043,6]
[354778583,1740687040285,-336.98,0.00032056,2]
[354778584,1740687040294,-289.6,0.00032203,2]
[354778585,1740687040304,-27913.84,0.00032256,2]
[354778586,1740687040313,-23900.0,0.00032276,2]
[354778587,1740687040322,-282.34,0.00032315,2]
[354778588,1740687040331,-191.48,0.00032343,2]
[354778589,1740687040341,-234.07,0.00032367,2]
[354778590,1740687040350,-188.33,0.00032401,2]
[354778591,1740687040360,-200.0,0.00032412,2]
[354778592,1740687040369,-379.99,0.00032433,2]
[354778593,1740687040379,-1000.0,0.00032475,2]
[354778594,1740687040388,-165.58,0.00032576,120]
[354778595,1740687040397,-172.93,0.00032646,2]
[354778596,1740687040407,-429.8,0.00032685,2]
[354778597,1740687040416,-300.0,0.00032995,2]
[354778598,1740687040426,-1293.52,0.00033038,2]
[354778599,1740687040436,-15327.0,0.00033038,2]
[354778600,1740687040445,-250.0,0.00033055,2]
[354778601,1740687040455,-287.33,0.0003309,2]
[354778602,1740687040465,-164.17,0.00033313,2]
[354778603,1740687040474,-804.99,0.00033411,2]
[354778604,1740687040483,-174.24,0.00033439,2]
[354778605,1740687040494,-3928.01,0.00033484,2]
[354778606,1740687040503,-200.0,0.00033541,2]
[354778607,1740687040512,-174.24,0.00034108,2]
[354778608,1740687040521,-167.0,0.00034418,7]
[354778609,1740687040530,-167.81251703,0.00034418,7]
[354778610,1740687040540,-245.39,0.00034418,7]
[354778611,1740687040549,-1903.3421733,0.00034567,2]
[354778612,1740687040564,-174.24,0.00034776,2]
[354778613,1740687040573,-429.8,0.00034949,2]
[354778614,1740687040583,-185.86745,0.00034999,2]
[354778615,1740687040592,-174.24,0.00035445,2]
[354778616,1740687040601,-174.24,0.00036114,2]
[354778617,1740687040610,-677.0,0.00036406,5]
[354778618,1740687040619,-1000.0,0.00036534,2]
[354778619,1740687040629,-174.24,0.00036783,2]
[354778620,1740687040638,-429.8,0.00037213,2]
[354778621,1740687040648,-159.27,0.00037272,2]
[354778622,1740687040661,-204.15248646,0.00037614,7]
[354778623,1740687040675,-157.14607024,0.00037708,2]
[354778624,1740687040684,-159.27,0.00037894,2]
[354778625,1740687040693,-1903.3421733,0.00038033,2]
[354778626,1740687040703,-185.22,0.00038405,2]
[354778627,1740687040713,-172.93,0.00038443,2]
[354778628,1740687040722,-159.27,0.00038515,2]
[354778629,1740687040731,-159.27,0.00039136,2]
[354778630,1740687040743,-429.8,0.00039477,2]
[354778631,1740687040752,-159.27,0.00039757,2]
[354778632,1740687040762,-5000.0,0.0004,60]
[354778633,1740687040771,-159.27,0.00040378,2]
[354778634,1740687040780,-1000.0,0.00040593,2]
[354778635,1740687040790,-159.27,0.00041,2]
[354778636,1740687040799,-742.85714286,0.00041096,30]
[354778637,1740687040808,-1500.0,0.00041096,120]
[354778638,1740687040818,-1903.3421733,0.000415,15]
[354778639,1740687040828,-742.85714286,0.00041671,30]
[354778640,1740687040837,-429.8,0.00041741,2]
[354778641,1740687040847,-164.0,0.00042056,120]
[354778642,1740687040856,-682.808,0.000422,63]
[354778643,1740687040865,-742.85714286,0.00042247,30]
[354778644,1740687040875,-150.0,0.00042534,30]
[354778645,1740687040884,-300.0,0.00042534,30]
[354778646,1740687040894,-150.0,0.00042534,30]
[354778647,1740687040903,-439.68,0.00042534,30]
[354778648,1740687040912,-150.0,0.00042534,30]
[354778649,1740687040922,-150.0,0.00042534,30]
[354778650,1740687040931,-150.0,0.00042634,30]
[354778651,1740687040942,-439.68,0.00042634,30]
[354778652,1740687040954,-150.0,0.00042634,30]
[354778653,1740687040964,-150.0,0.00042634,30]
[354778654,1740687040973,-742.85714286,0.00042822,30]
[354778655,1740687040982,-204.15248646,0.00043186,9]
[354778656,1740687040993,-742.85714286,0.0004337,30]
[354778657,1740687041002,-1000.0,0.00043836,2]
[354778658,1740687041011,-1000.0,0.00043836,2]
[354778659,1740687041021,-742.85714286,0.00043945,30]
[354778660,1740687041031,-429.8,0.00044005,2]
[354778661,1740687041041,-172.93,0.00044239,2]
[354778662,1740687041052,-914.99,0.000445,120]
[354778663,1740687041062,-516.49636544,0.000445,120]
[354778664,1740687041072,-742.85714286,0.00044521,30]
[354778665,1740687041083,-1000.0,0.00044653,2]
[354778666,1740687041092,-152.00003,0.00044653,14]
[354778667,1740687041101,-7339.280279,0.000448,2]
[354778668,1740687041111,-151.0,0.000448,14]
[354778669,1740687041120,-151.0,0.000448,14]
[354778670,1740687041130,-2425.72965078,0.00044898,62]
[354778671,1740687041139,-222.858898,0.000449,61]
[354778672,1740687041148,-159.0,0.000449,51]
[354778673,1740687041157,-1903.3421733,0.00044967,15]
[354778674,1740687041166,-500.0,0.00044973,10]
[354778675,1740687041175,-147975.54973374,0.00045,90]
[354778676,1740687041185,-1189.0,0.00045,5]
[354778677,1740687041194,-150.0,0.00045,85]
[354778678,1740687041203,-369250.83175036,0.00045,90]
[354778679,1740687041212,-151.0,0.00045,14]
[354778680,1740687041221,-151.0,0.00045,14]
[354778681,1740687041231,-151.0,0.00045,14]
[354778682,1740687041242,-151.0,0.00045,14]
[354778683,1740687041252,-151.0,0.00045,14]
[354778684,1740687041263,-151.0,0.00045,14]
[354778685,1740687041272,-5000.0,0.00045,120]
[354778686,1740687041282,-244.290298,0.00045,14]
[354778687,1740687041291,-244.290298,0.00045,14]
[354778688,1740687041309,-244.290298,0.00045,14]
[354778689,1740687041320,-244.290298,0.00045,14]
[354778690,1740687041330,-151.0,0.00045,14]
[354778691,1740687041339,-151.0,0.00045,14]
[354778692,1740687041350,-151.0,0.00045,14]
[354778693,1740687041359,-188.33,0.00045361,2]
[354778694,1740687041369,-106098.81540015,0.00046,2]
[354778695,1740687041378,-244.290298,0.00046,14]
[354778696,1740687041388,-244.290298,0.00046,14]
[354778697,1740687041397,-151.0,0.00046,14]
[354778698,1740687041407,-429.8,0.00046269,2]
[354778699,1740687041416,-154.43,0.000463,39]
[354778700,1740687041425,-203.0,0.0004647,30]
[354778701,1740687041434,-1500.0,0.000466,2]
[354778702,1740687041444,-35002.72657588,0.00047,120]
[354778703,1740687041453,-163.0,0.00047,90]
[354778704,1740687041462,-203.0,0.0004806,30]
[354778705,1740687041472,-1903.3421733,0.00048433,15]
[354778706,1740687041482,-8400.0,0.00048456,31]
[354778707,1740687041491,-429.8,0.00048533,2]
[354778708,1740687041500,-1000.0,0.00048712,2]
[354778709,1740687041509,-204.15248646,0.00048757,11]
[354778710,1740687041518,-207.0,0.0004877,30]
[354778711,1740687041527,-207.0,0.0004878,30]
[354778712,1740687041537,-207.0,0.0004879,30]
[354778713,1740687041546,-171298.46574084,0.000488,120]
[354778714,1740687041556,-271.94990902,0.000488,120]
[354778715,1740687041566,-244.290298,0.000488,14]
[354778716,1740687041575,-244.290298,0.000488,14]
[354778717,1740687041585,-163.0,0.00048904,90]
[354778718,1740687041594,-165.58,0.00048996,120]
[354778719,1740687041604,-901.1923379,0.00049,4]
[354778720,1740687041613,-12600.1476925,0.00049,8]
[354778721,1740687041622,-9000.0,0.00049,30]
[354778722,1740687041631,-1881.05,0.00049315,120]
[354778723,1740687041640,-178.51151395,0.000495,120]
[354778724,1740687041651,-3908.57,0.000495,120]
[354778725,1740687041661,-1061.0,0.00049561,30]
[354778726,1740687041671,-1881.05,0.00049589,120]
[354778727,1740687041680,-203.0,0.0004964,30]
[354778728,1740687041689,-1881.05,0.00049863,120]
[354778729,1740687041699,-1500.00000908,0.00049867,29]
[354778730,1740687041708,-8000.0,0.00049869,120]
[354778731,1740687041717,-470803.18315719,0.0004988,30]
[354778732,1740687041727,-244.290298,0.0004988,120]
[354778733,1740687041736,-244.290298,0.0004988,120]
[354778734,1740687041747,-206.0,0.0004989,30]
[354778735,1740687041756,-3227.92,0.0004996,2]
[354778736,1740687041765,-2489.41,0.0004996,30]
[354778737,1740687041774,-150.99,0.0004996,2]
[354778738,1740687041783,-499.99,0.0004996,30]
[354778739,1740687041792,-1000.0,0.00049999,120]
[354778740,1740687041802,-264.97503178,0.0005,120]
[354778741,1740687041812,-9150.0,0.0005,120]
[354778742,1740687041821,-150.0,0.0005,120]
[354778743,1740687041830,-1000.0,0.0005,2]
[354778744,1740687041839,-1131.44367988,0.0005,5]
[354778745,1740687041849,-754.61689,0.0005,120]
[354778746,1740687041859,-10954.0,0.0005,120]
[354778747,1740687041868,-4594.0,0.0005,15]
[354778748,1740687041877,-150.0,0.0005,120]
[354778749,1740687041887,-150.88,0.0005,120]
[354778750,1740687041896,-150.88,0.0005,120]
[354778751,1740687041905,-150.88,0.0005,120]